Cogmind - Beta 17 @@@ ROGUE MODE // 2026.06.30 @ 13:10:49 Player: Lolterzard Result: Destroyed by G-47 Trooper with Particle Gun Performance ------------- Evolutions (3) 1500 Regions Visited (4) 800 Robots Destroyed (152) 760 Value Destroyed (4536) 4536 Prototype IDs (4) 80 Alien Tech Used (0) 0 Bonus (91) 91 TOTAL SCORE: 7767 Bonus ------- High Alert Combat Kills 91 Cogmind --------- Core Integrity 0/700 Matter 3/300 Energy 290/290 System Corruption 5% Temperature Cool (9) Movement Walking (260) Ox2 Location -7/Factory Parts ------- > --- POWER (2) -------- Improved Deuterium Engine > --- PROPULSION (4) --- Aluminum Leg > --- UTILITY (5) ------ Improved Heat Sink Utility Shielding Reflective Plating > --- WEAPON (2) ------- Rocket Launcher Rocket Launcher > --- INVENTORY (5) ---- Compact Matter Pod (0) Utility Shielding Improved Medium Armor Plating Rocket Launcher Katana Peak State ------------ > --- POWER ------------ Nuclear Core > --- PROPULSION ------- Carbon-fiber Leg Carbon-fiber Leg Carbon-fiber Leg Carbon-fiber Leg > --- UTILITY ---------- Huge Storage Unit Improved Medium Armor Plating Improved Medium Armor Plating Improved Medium Armor Plating Improved Medium Armor Plating > --- WEAPON ----------- Improved Assault Rifle Improved Assault Rifle > --- INVENTORY -------- Improved Heat Sink Compact Matter Pod Propulsion Shielding Utility Shielding Utility Shielding Improved Light Armor Plating Improved Light Armor Plating Improved Light Armor Plating Improved Medium Armor Plating Improved Medium Armor Plating Improved Medium Armor Plating Improved Medium Armor Plating Improved Medium Armor Plating Flak Cannon Rocket Launcher Rocket Launcher Rocket Launcher Rocket Launcher [Rating: 42] Favorites ----------- Power Ion Engine Engine Ion Engine Power Core Nuclear Core Propulsion Improved Treads Treads Improved Treads Leg Aluminum Leg Wheel Armored Huge Wheel Utility Improved Medium Armor Plating Device Seismic Detector Storage Huge Storage Unit Processor Transport Network Coupler Protection Improved Medium Armor Plating Weapon Improved Light Cannon Ballistic Gun Improved Assault Rifle Ballistic Cannon Improved Light Cannon Launcher Rocket Launcher Slashing Weapon Katana Build | -11 -10 -9 -8 -7 ------- Run | Yrd Mat Mat Mat Fac Slots Evolved 6 | . . 2 2 2 Power 1 | . . . . 1 Propulsion 2 | . . 2 . . Utility 3 | . . . 2 1 Weapon . | . . . . . Parts Attached 82 | 7 5 11 9 50 Power 13 | 1 . 2 2 8 Engine 8 | 1 . 2 1 4 Core 5 | . . . 1 4 Reactor . | . . . . . Propulsion 19 | 2 1 6 . 10 Treads 9 | 2 1 6 . . Leg 6 | . . . . 6 Wheel 4 | . . . . 4 Hover . | . . . . . Flight . | . . . . . Utility 32 | 2 2 2 5 21 Device 10 | 1 1 . 1 7 Storage 5 | 1 1 1 1 1 Processor 1 | . . 1 . . Hackware . | . . . . . Protection 16 | . . . 3 13 Artifact . | . . . . . Weapon 18 | 2 2 1 2 11 Energy Gun . | . . . . . Energy Cannon . | . . . . . Ballistic Gun 8 | 2 . 1 . 5 Ballistic Cannon 5 | . 2 . 2 1 Launcher 3 | . . . . 3 Special Weapon . | . . . . . Impact Weapon . | . . . . . Slashing Weapon 2 | . . . . 2 Piercing Weapon . | . . . . . Special Melee Weapon . | . . . . . Unidentified Prototypes 2 | . . 1 1 . Corrupted Parts 1 | . . 1 . . System Corruption 2 | . . 2 . . Parts Lost 46 | . . 3 4 39 Power 8 | . . 1 1 6 Propulsion 11 | . . 2 . 9 Utility 16 | . . . 1 15 Weapon 11 | . . . 2 9 Highest Loss Streak 11 | . . 2 1 11 To Critical Strikes 1 | . . . . 1 Average Backups 17 | 3 7 16 24 19 Power . | . 1 1 1 . Propulsion . | 1 1 . . . Utility 10 | . . 7 13 13 Weapon 6 | . 4 7 9 6 Tool/Special . | . . . . . Unused Backups 33 | . 5 6 1 21 Power 1 | . . 1 . . Propulsion 3 | . 3 . . . Utility 19 | . . . 1 18 Weapon 10 | . 2 5 . 3 Tool/Special . | . . . . . Average Slot Usage (%) 89 | . 99 91 99 81 Engine 6 | . 14 10 3 3 Core 4 | . . . 5 8 Treads 23 | . 28 35 35 9 Leg 1 | . . . . 2 Wheel 2 | . . . . 6 Device 10 | . 14 7 16 8 Storage 9 | . 14 11 9 6 Protection 10 | . . . 10 20 Ballistic Gun 4 | . 10 . . 8 Ballistic Cannon 12 | . 17 21 17 3 Peak Build Rating 42 | 7 10 19 26 42 Average Rating 23 | 5 8 14 24 32 On Entrance 12 | . 7 10 19 26 Avg Prop Armor Cover (%) 7 | 26 . 6 . 3 Naked Turns . | . . . . . Heaviest Build 136 | 14 34 54 107 136 Greatest Support 92 | 40 40 92 92 92 Greatest Overweight (x) 40 | 4 . 1 1 40 Average Overweight (x) 1 | . . . . 2 Largest Inventory Capacity 25 | 8 15 20 25 25 Average Capacity 20 | 7 10 17 24 24 Most Carried 25 | 4 9 20 25 25 Average Carried 18 | 3 7 16 24 19 Final Capacity 25 | 8 15 20 25 5 Final Carried 25 | 4 9 20 25 5 Class Distribution -------------------- 94% | Mutant 4% | Scavenger-Mutant Dominant Class ---------------- Mutant | -10/Materials Mutant | -9/Materials Mutant | -8/Materials Mutant | -7/Factory Resources | -11 -10 -9 -8 -7 ----------- Run | Yrd Mat Mat Mat Fac Matter Collected 4405 | 306 246 982 846 2025 Remotely 1559 | . . . 846 713 Salvage Created 4418 | 137 366 1173 655 2087 Parts 270 | 7 26 87 48 102 Haulers Intercepted 14 | . 2 6 3 3 Recyclers Shooed 9 | . . 4 . 5 Parts Field Recycled . | . . . . . Retrieved Matter . | . . . . . Parts Self-Destructed . | . . . . . Prevented . | . . . . . Parts Restored . | . . . . . Kills | -11 -10 -9 -8 -7 ------- Run | Yrd Mat Mat Mat Fac Combat Hostiles Destroyed 99 | . 8 31 19 41 Melee 1 | . . . . 1 Guns 25 | . 6 . . 19 Cannons 67 | . 2 31 19 15 AOE 6 | . . . . 6 Classes Destroyed 14 | 2 6 3 1 2 Worker 11 | . . 1 1 9 Builder 3 | . 1 1 . 1 Tunneler 2 | 2 . . . . Hauler 14 | . 2 6 3 3 Recycler 9 | 1 . 1 1 6 Operator 2 | . 1 . 1 . Watcher 12 | . 3 5 1 3 Swarmer 22 | . 3 7 4 8 Grunt 45 | . 5 17 10 13 Brawler 3 | . . 1 . 2 Duelist 2 | . . . 1 1 Sentry 19 | . . 6 4 9 Hunter 3 | . . . . 3 Programmer 5 | . . . . 5 Best Kill Streak 7 | 3 2 5 4 7 Combat Bots Only 6 | . 2 4 3 6 Max Kills in Single Turn 2 | 1 1 2 2 2 Gunslinging . | . . . . . Exploded 2 | . . . . 2 Melee 1 | . . . . 1 Uniques/NPCs Destroyed . | . . . . . Combat | -11 -10 -9 -8 -7 -------- Run | Yrd Mat Mat Mat Fac Hostile Shots Fired 1164 | . 48 95 83 938 Missed 408 | . 16 29 23 340 Hits 756 | . 32 66 60 598 Melee 2 | . . 1 1 . Projectile 754 | . 32 65 59 598 Critical Strikes 15 | . . 1 2 12 Actively Blocked 1 | . . . . 1 Damage Taken 7957 | . 364 744 903 5946 Core 918 | . 70 89 52 707 Absorbed by Shields 481 | . . . . 481 Redirected to Shielding 144 | . . . . 144 Ignored by Resistances 175 | . . . . 175 Regen/Repaired (Parts) 286 | . . 98 188 . Core Remaining (%) 84 | 100 72 77 90 . Volleys Fired 445 | 9 45 100 73 218 Largest 2 | 2 2 2 2 2 Hottest 66 | 40 66 66 66 66 Shots Fired 858 | 18 90 198 143 409 Gun 327 | 18 52 . . 257 Cannon 513 | . 38 198 143 134 Launcher 18 | . . . . 18 Special . | . . . . . Kinetic 840 | 18 90 198 143 391 Thermal . | . . . . . Explosive 18 | . . . . 18 Electromagnetic . | . . . . . Robot Hit Streak 21 | 6 18 11 8 21 Robot Miss Streak 12 | 4 7 4 5 12 Penetration Max . | . . . . . Secondary Targets 6 | . 1 . . 5 Max Gunslinging Chain 1 | . 1 . . 1 Shots Hit Robots 571 | 9 60 110 87 305 Core Hits 335 | 4 25 47 37 222 Critical Kills . | . . . . . Critical Parts Destroyed . | . . . . . Critical Strikes 13 | . 1 6 4 2 Blast 13 | . 1 6 4 2 Melee Attacks 4 | . . . . 4 Impact . | . . . . . Slashing 4 | . . . . 4 Piercing . | . . . . . Sneak Attacks . | . . . . . Combat Hostiles . | . . . . . Follow-up Attacks . | . . . . . Damage Inflicted 11984 | 91 873 2518 1872 6630 Guns 3364 | 91 407 . . 2866 Cannons 6438 | . 463 2322 1851 1802 Explosions 2004 | . . 166 . 1838 Melee 64 | . . . . 64 Ramming 114 | . 3 30 21 60 Kinetic 9802 | 91 870 2322 1851 4668 Thermal 697 | . . . . 697 Explosive 1141 | . . . . 1141 Electromagnetic 166 | . . 166 . . Impact . | . . . . . Slashing 64 | . . . . 64 Piercing . | . . . . . Highest Corruption 5 | . . 2 . 5 Average Corruption 2 | . . 2 . 3 Corruption Purged . | . . . . . Corruption Blocked . | . . . . . Effects 83 | . . 33 . 50 Message Errors 17 | . . 8 . 9 Matter Fused 20 | . . 11 . 9 Heat Flow Errors 6 | . . 2 . 4 Energy Discharges 8 | . . 3 . 5 Parts Rejected 2 | . . . . 2 Parts Fused 3 | . . 2 . 1 Data Loss (minor) 11 | . . 2 . 9 Data Loss (major) 5 | . . 2 . 3 Misfires 4 | . . . . 4 Alerts 3 | . . 1 . 2 Weapon Failures 4 | . . 2 . 2 Overload Shots . | . . . . . Overflow Damage 251 | . 14 4 27 206 Projectiles 75 | . 14 4 27 30 Explosions 176 | . . . . 176 Melee . | . . . . . Knockbacks 82 | . 2 19 18 43 Impact 1 | . . . 1 . Kinetic 77 | . 2 17 17 41 Secondary 4 | . . 2 . 2 Self-Inflicted Damage 54 | . . . . 54 Shots 1 | . . . . 1 Rammed 11 | . 1 7 1 2 Targets Rammed 14 | . 1 8 2 3 Kicked . | . . . . . Crushed 3 | . . 1 1 1 Highest Temperature 394 | . 102 158 236 394 Average Temperature 58 | . 23 21 53 81 Received Heat Transfer 2955 | . 171 216 477 2091 Effects 6 | . . . 3 3 Energy Bleed 1 | . . . . 1 Interference 5 | . . . 3 2 Siege Activations . | . . . . . Martial Activations . | . . . . . Shielding Activations . | . . . . . Robots Disrupted . | . . . . . Combat Hostiles . | . . . . . Robots Corrupted . | . . . . . Combat Hostiles . | . . . . . Parts Fried . | . . . . . Impact Corruptions . | . . . . . Robots Melted . | . . . . . Combat Hostiles . | . . . . . Parts Melted 1 | . . . . 1 Heat Transferred 550 | . . . . 550 Parts Sabotaged . | . . . . . Parts Stolen . | . . . . . Parts Stripped . | . . . . . Power Chain Reactions . | . . . . . Alert | -11 -10 -9 -8 -7 ------- Run | Yrd Mat Mat Mat Fac Maximum Alert Level 3 | . . 1 1 3 Low Security (%) 67 | 100 100 33 57 81 Level 1 29 | . . 66 42 10 Level 2 . | . . . . 1 Level 3 2 | . . . . 5 Level 4 . | . . . . . Level 5 . | . . . . . High Security . | . . . . . Max Security . | . . . . . Peak Influence 767 | 10 100 372 333 767 Initial 152 | . . . 152 128 Average 155 | 1 29 216 187 146 Influence Increases 3710 | 15 300 975 673 1747 Destroy 0b10 Robot/C 1980 | . 160 620 380 820 Destroy 0b10 Robot/NC 265 | 15 35 70 35 110 Destroy Leader 552 | . 40 172 108 232 Successful Hack 86 | . 16 14 24 32 Disable Machine 315 | . 15 60 60 180 Anti-Garrison Action 150 | . . . . 150 Destroy Structure 122 | . 4 9 6 103 Lose Combat Pursuer 240 | . 30 30 60 120 Influence Decreases 2943 | 15 300 615 750 1263 Entered New Map 363 | . . . 208 155 Time Decay 1984 | 15 253 585 502 629 Lost Part 417 | . . 30 40 347 Lost Ally 10 | . . . . 10 Purge Threat 169 | . 47 . . 122 Squads Dispatched 31 | . . 6 5 20 Investigation 9 | . . 4 1 4 Extermination 4 | . . . . 4 Reinforcement 5 | . . 2 1 2 Assault 4 | . . . . 4 Garrison 9 | . . . 3 6 Intercept . | . . . . . Searches Triggered . | . . . . . Construction Impeded 1 | . . . . 1 Haulers Reinforced . | . . . . . Active Scanning Responses . | . . . . . Cargo Convoy Interrupts . | . . . . . Stealth | -11 -10 -9 -8 -7 --------- Run | Yrd Mat Mat Mat Fac Distress Signals 4 | . 1 2 . 1 Communications Jammed . | . . . . . Distress Signals . | . . . . . Times Spotted 151 | . 16 45 27 63 Peak Tracking Total 8 | . 4 5 4 8 Tactical Retreats 10 | . 1 2 2 5 Traps | -11 -10 -9 -8 -7 ------- Run | Yrd Mat Mat Mat Fac Traps Triggered 2 | . . 1 . 1 Indirectly 1 | . . 1 . . Trap Hack Attempts . | . . . . . Triggered . | . . . . . Disarmed . | . . . . . Reprogrammed . | . . . . . Reused . | . . . . . Traps Extracted . | . . . . . Installed . | . . . . . Triggered . | . . . . . Machines | -11 -10 -9 -8 -7 ---------- Run | Yrd Mat Mat Mat Fac Machines Disabled 22 | . 1 4 4 13 Max in Single Turn 6 | . 1 1 1 6 Garrison Access 1 | . . . . 1 Machines Repaired . | . . . . . Machines Dismantled . | . . . . . Machines Sabotaged . | . . . . . Overloaded Fab Kills . | . . . . . Hacking | -11 -10 -9 -8 -7 --------- Run | Yrd Mat Mat Mat Fac Machines Accessed 23 | . 6 6 3 8 Terminals 15 | . 5 3 2 5 Fabricators 1 | . . . . 1 Repair Stations 3 | . 1 1 1 . Recycling Units 3 | . . 1 . 2 Scanalyzers 1 | . . 1 . . Garrison Access . | . . . . . Total Hacks 61 | . 11 16 12 22 Successful 29 | . 5 8 7 9 Failed 32 | . 6 8 5 13 Catastrophic 7 | . 2 1 . 4 Database Lockouts . | . . . . . Manual 14 | . . 2 . 12 Terminals 40 | . 10 8 6 16 Fabricators 1 | . . . . 1 Repair Stations 10 | . 1 3 6 . Recycling Units 7 | . . 2 . 5 Scanalyzers 3 | . . 3 . . Garrison Access . | . . . . . Terminal Hacks 13 | . 5 3 2 3 Prototype ID Bank 1 | . . 1 . . Alert Level 1 | . 1 . . . Unreport Threat 2 | . 1 . . 1 Locate Traps 2 | . . 1 . 1 Hauler Manifests 3 | . . 1 1 1 Registered Components 2 | . 1 . 1 . Registered Prototypes 1 | . 1 . . . Zone Layout 1 | . 1 . . . Fabricator Hacks 1 | . . . . 1 Build 1 | . . . . 1 Repair Station Hacks 8 | . . 3 5 . Scan Component 5 | . . 2 3 . Repair 3 | . . 1 2 . Recycling Unit Hacks 2 | . . . . 2 Retrieve Components 2 | . . . . 2 Scanalyzer 2 | . . 2 . . Retrieve Study 2 | . . 2 . . Garrison Access Hacks . | . . . . . Unauthorized Hacks 3 | . . . . 3 Terminals 3 | . . . . 3 Botnet 3 | . . . . 3 Fabricators . | . . . . . Repair Stations . | . . . . . Recycling Units . | . . . . . Scanalyzers . | . . . . . Garrison Access . | . . . . . Data Cores Recovered 1 | . 1 . . . Used . | . . . . . Hacking Detections 17 | . 3 5 3 6 Full Trace Events 11 | . 1 5 1 4 Feedback Events . | . . . . . Feedback Blocked . | . . . . . Robot Schematics Acquired . | . . . . . Robots Built 4 | . . . . 4 Authchips . | . . . . . Time 40 | . . . . 40 Total Robot Build Rating 4 | . . . . 4 Part Schematics Acquired . | . . . . . Parts Built . | . . . . . Authchips . | . . . . . Time . | . . . . . Total Part Build Rating . | . . . . . Part Studies Acquired 2 | . . 2 . . Parts Repaired 3 | . . 1 2 . Time 90 | . . 26 64 . Parts Recycled . | . . . . . Recycled Matter . | . . . . . Retrieved Matter . | . . . . . Retrieved Components 11 | . . . . 11 Parts Scanalyzed . | . . . . . Part Schematics Acquired . | . . . . . Parts Damaged . | . . . . . Bothacking | -11 -10 -9 -8 -7 ------------ Run | Yrd Mat Mat Mat Fac Used RIF Installer . | . . . . . Robots Hacked . | . . . . . Non-combat . | . . . . . Combat . | . . . . . Robot Hacks Applied . | . . . . . Relay Couplers Released 2 | . . . . 2 Machine Destruction 2 | . . . . 2 Fabnet Peak Effective % . | . . . . . Robots Rewired . | . . . . . Allies Hacked . | . . . . . Hacks Repelled . | . . . . . Allies | -11 -10 -9 -8 -7 -------- Run | Yrd Mat Mat Mat Fac Total Allies 4 | . . . . 4 Largest Group 4 | . . . . 4 Highest-Rated Group 24 | . . . . 24 Highest-Rated Ally 6 | . . . . 6 Total Orders . | . . . . . Ally Attacks . | . . . . . Total Damage . | . . . . . Kills . | . . . . . Allies Corrupted . | . . . . . Allies Melted . | . . . . . Intel | -11 -10 -9 -8 -7 ------- Run | Yrd Mat Mat Mat Fac Active Infowar (turns) 3949 | 28 890 1928 1103 . Seismic 3368 | 28 890 1347 1103 . T.N.C. 581 | . . 581 . . Robot Analysis Total . | . . . . . Derelict Logs Recovered . | . . . . . Drone Launches . | . . . . . Drone Recoveries . | . . . . . Exploration | -11 -10 -9 -8 -7 ------------- Run | Yrd Mat Mat Mat Fac Turns Passed 7503 | 123 891 1932 1348 3209 Spaces Moved 2980 | 56 455 921 503 1045 Core 47 | 20 . . . 27 Treads 2251 | 36 455 921 503 336 Legs 71 | . . . . 71 Wheels 611 | . . . . 611 Hover . | . . . . . Flight . | . . . . . Fastest Speed 50 | 50 160 160 160 108 Average Speed 187 | 151 160 161 194 220 Slowest Speed 2050 | 250 160 200 200 2050 Overloaded Moves . | . . . . . Propulsion Burnouts . | . . . . . Robots Hopped . | . . . . . Potential Cave-ins . | . . . . . Cave-ins Triggered . | . . . . . Exploration Rate (%) 43 | 5 84 60 33 33 Regions Visited 4 Branch Regions . Pre-discovered Areas . | . . . . . Known Exits Taken . | . . . . . Unknown Exits Taken 4 | 1 1 1 1 . Scrap Searched . | . . . . . Spaces Dug . | . . . . . Terrain Destroyed 139 | . 4 5 4 126 Melee . | . . . . . Projectile 13 | . 4 5 4 . AOE 126 | . . . . 126 Terrain Rammed . | . . . . . Walls Destroyed . | . . . . . Machines Disabled . | . . . . . Actions | -11 -10 -9 -8 -7 --------- Run | Yrd Mat Mat Mat Fac Total 4060 | 75 536 1170 731 1548 Wait 388 | . 10 93 128 157 Move 2976 | 55 454 920 502 1045 Hop . | . . . . . Pick Up 73 | 4 11 18 10 30 Fast Attach 47 | 7 2 10 5 23 Attach 35 | . . 1 4 30 Detach 3 | . . . . 3 Swap 18 | . 3 6 3 6 Drop 57 | . 10 14 4 29 Fire 445 | 9 45 100 73 218 Melee 4 | . . . . 4 Ram 1 | . . . . 1 Kick . | . . . . . Crush 13 | . 1 8 2 2 Escape Stasis . | . . . . . Rewire . | . . . . . Trap . | . . . . . Miscellaneous . | . . . . . Route ------- -11/Scrapyard -10/Materials (discovered 4 exits: *Mat x2 / [*Min x2]) -9/Materials (discovered 5 exits: *Mat x2 / [*Min x2] / [*Sto]) -8/Materials -7/Factory History --------- Turn | Location | Event 7 | -11/Scrapyard | Discovered new exit (range 15) 124 | -11/Scrapyard | Entered Materials 210 | -10/Materials | Discovered new exit (range 13) 315 | -10/Materials | Build established: Mutant 589 | -10/Materials | Discovered new exit (range 16) 860 | -10/Materials | Discovered new exit (range 10) 994 | -10/Materials | Discovered new exit (range 14) 1015 | -10/Materials | Entered another Materials area 1015 | -9/Materials | Evolved 2 slots: Propulsion x2 1152 | -9/Materials | Discovered new exit (range 16) 1618 | -9/Materials | Discovered new exit (range 6) 1740 | -9/Materials | Build established: Scavenger-Mutant 1754 | -9/Materials | Discovered new exit (range 4) 1842 | -9/Materials | Discovered new exit (range 12) 1921 | -9/Materials | Repaired Lgt. Treads+ 2096 | -9/Materials | Build established: Mutant 2692 | -9/Materials | Discovered new exit (range 15) 2947 | -9/Materials | Entered another Materials area 2947 | -8/Materials | Evolved 2 slots: Utility x2 3348 | -8/Materials | Repaired Imp. Treads+ 3396 | -8/Materials | Discovered new exit (range 15) 3695 | -8/Materials | Garrison activated, responded to threat 4019 | -8/Materials | Repaired Imp. Treads+ 4295 | -8/Materials | Entered Factory 4295 | -7/Factory | Evolved 2 slots: Power x1, Utility x1 5142 | -7/Factory | Garrison activated, responded to threat 5249 | -7/Factory | Garrison activated, responded to threat 5334 | -7/Factory | Lost 5 parts (1p3n1u) 5551 | -7/Factory | Lost 7 parts (1p4u2w) 6709 | -7/Factory | Fabricated K-01 Serf (x4) 6790 | -7/Factory | Lost 3 allies 6824 | -7/Factory | Garrison activated, responded to threat 6874 | -7/Factory | Core integrity fell below 50% 6904 | -7/Factory | Lost 3 parts (2u1w) 7038 | -7/Factory | Core integrity fell below 20% 7096 | -7/Factory | Lost 11 parts (2p3n3u3w) 7312 | -7/Factory | Garrison activated, responded to threat 7495 | -7/Factory | First assault squad dispatched 7504 | -7/Factory | Destroyed by G-47 Trooper with Particle Gun Last Messages --------------- 07397_ System corrupted: Matter fused (-6). 07397_ K-01 Serf collects debris. 07411_ U-05 Engineer builds a Wall. 07459_ System corrupted: Energy discharge (-107). 07474_ System corrupted: Component data lost. 07482_ The unstable cave ceiling collapses. 07489_ C-45 Heavy ARC bursts open, deploying its payload. 07489_ G-50 Soldier unfolds itself. 07489_ G-47 Trooper unfolds itself. 07489_ B-48 Gladiator unfolds itself. 07489_ G-47 Trooper unfolds itself. 07489_ I-36 Angel unfolds itself. 07491_ ALERT: Construction progress impeded, dispatching reinforcements to local area. 07493_ The unstable cave ceiling collapses. 07494_ B-48 Gladiator destroyed. 07495_ ALERT: Unidentified disturbance in Zone 6A, multiple assault carriers dispatched. 07497_ Dropped Huge Storage Unit. 07500_ Critical hit (Burn: +37). Map ----- +----------------------------------------------------+ | | | | | | | | | | | | | | | | | ?????????????????????????????????????????????????? | | ?????????????????????????????????????????????????? | | ?????????????????????????????????????????????????? | | ?????????????????????????????????????????????????? | | ?????????????????????????????????????????????????? | | ?????????????????????????????????????????????????? | | ?????????????????????????????????????????????????? | | ?????????????????????????????????????????????????? | | ?????????????????????????????????????????????????? | | ?????????????????????????????????????????????????? | | ?????????????????????????????????????????????????? | | ?????????????????????????????????????????????????? | | ????????????????????????###########??????????????? | | ????????????????????????# ##########?????? | | ????????????????????????# ^ ##????? | | ????????????????????????# ????? | | ?????????????????#####+## "" ! ^ ???? | | ???????????# @ T" ^ ???? | | ???????????# ##### /!! ^ ??? | | ????????????????????????# !/!] ??? | | ????????????????????????# !!! #?????? | | ????????????????????????# #######????????? | | ????????????????????????### ###??????????????? | | ??????????????????????????# #????????????????? | | ?????????????????????????? #????????????????? | | ?????????????????????????? ###########??????? | | ????????????????????????? # ! #??????? | | ????????????????????????? % ! ##?????? | | ????????????????????????? ig =% #?????? | | ???????????????????????? ! ###????? | | ???????????????????????"" g #????? | | ???????????????????????"" % # #????? | | ????????????????????????" # #????? | | ???????????????????????? ##????? | | ??????????????????????????# # ##### #????? | | ??????????????????????????# # ###????? | | ???????????????????????#### #?????? | | ?????????????????? # ! ###?????? | | ?????????????????? # [ #??????? | | ??????????????????# #??????? | | ??????????????????? ##??????? | | ??????????????????? ###### ##??????? | +----------------------------------------------------+ Best States ------------- Heat Dissipation 62 Energy Generation 27 Energy Capacity 465 Matter Stores 300 Matter Capacity 300 Sight Range 16 Terrain Scan Density 10 Armor Coverage 900 Resistance: KI 30 Resistance: TH 10 Propulsion Shielding 33 Utility Shielding 33 Evasion (%) 40 Recoil Reduction 4 Item Schematics ----------------- None Robot Schematics ------------------ None Fabricated ------------ K-01 Serf | x4 | -7/Factory | Preloaded Repaired ---------- Lgt. Treads | 30% | -9/Materials Imp. Treads | 68% | -8/Materials Imp. Treads | 10% | -8/Materials Studied --------- Lgt. Treads | -9/Materials | Hacked Imp. Treads | -9/Materials | Hacked Alien Tech Used ----------------- None Achievements -------------- None Challenges ------------ None Game ------ Seed RestorationDynamicMonowheel Manual? 0 Play Time 00:41:52 Cumulative 62.4 hours Start 2026.06.30 @ 12:31:54 End 2026.06.30 @ 13:10:49 Sessions 1 Manual Loads 0 Difficulty Rogue Special Mode None Game No. 132 Rogue 132 Adventurer 0 Explorer 0 Win Type - Total 0 Types 0/0/0/0/0/0/0/0/0/0 Lore% 30 Gallery% 29 Achievement% 25 Wizard Run 0 Options --------- Layout 0 ASCII 0 Keyboard 0 Movement Mouse Keybinds 0 Fullscreen 2 Font 24/Smallcaps Map View 76x50 Zoom Use 0% Tactical HUD 1 Map Filters NONE Filters NONE Steam 1 RUN: 20463872-2216-4d5a-a04c-00daccd8b477